bitfinex/quotes_ETHUSD_20260219
["timestamp","ask_amount","ask_price","bid_price","bid_amount"]
[1771477513119,1.26876862,1970.5,1969.9,2.65678374]
[1771477513422,1.002,1970.7,1970.0,0.47368568]
[1771477513729,0.49644792,1970.7,1970.0,0.47368568]
[1771477514118,0.49644792,1970.7,1969.9,0.47368568]
[1771477515353,1.26864914,1970.6,1970.1,0.001]
[1771477515851,0.49644792,1970.5,1970.0,1.21103553]
[1771477516251,1.26864914,1970.6,1970.0,1.21103553]
[1771477516457,2.7671672,1970.7,1970.0,1.21103553]
[1771477516619,0.49644792,1970.6,1970.0,1.21103553]
[1771477517447,1.76515189,1970.6,1970.0,1.21103553]
[1771477518058,1.76510463,1970.6,1970.0,1.68472121]
[1771477518442,1.76510463,1970.6,1970.0,1.21103553]
[1771477519343,1.76522583,1970.4,1969.8,1.27014163]
[1771477520065,1.76522583,1970.4,1969.8,1.74382731]
[1771477520256,0.49644792,1970.4,1969.8,1.74382731]
[1771477520561,0.49644792,1970.4,1969.8,1.27014163]
[1771477521341,0.49644792,1970.4,1969.8,1.74382731]
[1771477523459,1.76523691,1970.4,1969.8,1.74382731]
[1771477523955,1.26878899,1970.4,1969.8,1.27014163]
[1771477524162,0.49644792,1970.3,1969.8,1.21014163]
[1771477527091,1.76529909,1970.3,1969.8,1.21014163]
[1771477527466,1.76529909,1970.3,1969.6,0.47368568]
[1771477527467,0.49644792,1970.2,1969.4,5.0776744]
[1771477528176,0.49644792,1970.2,1969.9,0.001]
[1771477528371,0.49644792,1970.2,1969.4,5.0776744]
[1771477528677,0.49644792,1970.2,1969.8,0.001]
[1771477529583,0.0011,1970.3,1969.8,0.001]
[1771477529584,1.75068646,1970.1,1969.8,0.001]
[1771477531269,0.48171535,1970.0,1969.8,0.001]
[1771477532000,0.48171535,1969.8,1969.2,0.1475688]
[1771477532309,12.42986445,1969.9,1968.7,0.45631747]
[1771477532310,6.0620976,1969.4,1968.7,0.45631747]
[1771477532497,5.58038225,1969.0,1968.6,2.23493786]
[1771477532892,5.58038225,1969.0,1968.6,2.23493579]
[1771477533402,5.58038225,1969.4,1968.7,0.45631747]
[1771477533998,2.16639913,1969.5,1968.8,1.26980902]
[1771477534197,2.64811448,1969.5,1968.8,1.26980902]
[1771477534379,0.48171535,1969.4,1968.7,1.26982655]
[1771477534704,1.75087973,1969.8,1968.8,0.45631747]
[1771477534889,0.48171535,1969.7,1968.8,0.45631747]
[1771477536309,1.7510086,1969.6,1968.9,1.26974452]
[1771477538712,1.26927457,1969.7,1968.9,1.72606199]
[1771477539009,1.26927457,1969.7,1969.0,0.45631747]
[1771477539181,1.75098992,1969.7,1969.0,0.45631747]
[1771477540708,1.75098992,1969.7,1969.1,1.26961556]
[1771477540901,1.75098992,1969.7,1969.0,1.26964221]
[1771477540902,0.48171535,1969.6,1969.0,1.26964221]
[1771477541413,0.48171535,1969.6,1969.0,1.27064221]
[1771477541610,0.48281535,1969.6,1969.0,1.27064221]
[1771477541918,0.0011,1969.6,1969.0,1.72695968]
[1771477542146,1.26927457,1969.7,1969.0,1.72695968]
[1771477542147,0.0011,1969.7,1969.1,0.45631747]
[1771477542410,0.48171535,1969.6,1969.0,1.27064221]
[1771477542789,1.75101688,1969.6,1969.0,1.27064221]
[1771477543910,0.48171535,1969.5,1969.0,0.001]
[1771477544329,0.48171535,1969.5,1968.9,0.001]
[1771477544485,0.48171535,1969.2,1968.9,0.001]
[1771477544685,1.75133091,1969.1,1968.7,0.001]
[1771477545714,1.26960297,1969.2,1968.7,0.001]
[1771477546011,1.75125513,1969.3,1968.7,0.001]
[1771477546689,0.48171535,1969.2,1968.7,0.001]
[1771477547937,5.0778177,1969.4,1968.7,0.001]
[1771477548144,0.48171535,1969.3,1968.7,0.001]
[1771477548710,0.48171535,1969.1,1968.7,0.001]
[1771477549751,1.26955108,1969.2,1968.7,0.001]
[1771477550123,1.75126643,1969.2,1968.7,0.001]
[1771477551045,0.48171535,1969.1,1968.7,0.001]
[1771477552853,1.26955108,1969.2,1968.7,0.001]
[1771477553153,1.75126643,1969.2,1968.7,0.001]
[1771477553324,0.48171535,1969.1,1968.7,0.001]
[1771477554057,0.48171535,1969.1,1968.8,0.001]
[1771477554662,0.48171535,1969.1,1968.7,0.001]
[1771477554868,0.48171535,1968.9,1968.7,0.001]
[1771477555164,0.48171535,1968.9,1968.5,0.001]
[1771477556948,0.48171535,1968.7,1968.1,1.27025816]
[1771477557147,1.005,1968.6,1967.3,0.45631747]
[1771477557536,1.75152437,1968.8,1967.3,0.45631747]
[1771477557537,1.26980902,1968.8,1967.3,0.45631747]
[1771477557831,0.48171535,1969.1,1967.6,0.45631747]
[1771477558060,0.48171535,1969.1,1967.8,0.45631747]
[1771477558337,0.48171535,1969.1,1967.9,0.45631747]
[1771477559156,0.48171535,1968.8,1968.0,1.2703252]
[1771477559935,0.48171535,1968.8,1968.0,1.74429037]
[1771477560265,0.48171535,1968.8,1968.1,0.47396517]
[1771477560559,1.26974452,1968.9,1968.1,0.47396517]
[1771477561861,5.58583438,1968.5,1967.9,0.47396517]
[1771477562061,5.58583438,1968.5,1967.8,1.27045431]
[1771477562740,5.58583438,1968.5,1967.8,0.47396517]
[1771477562956,6.05272675,1968.5,1967.7,1.27048045]
[1771477563261,5.58583438,1968.1,1967.5,1.27064803]
[1771477563860,1.27032178,1968.1,1967.5,1.27064803]
[1771477564064,1.27032178,1968.1,1967.4,1.7446276]
[1771477564265,5.08025825,1968.5,1967.5,0.47396517]
[1771477564266,1.27006705,1968.4,1967.5,0.47396517]
[1771477565357,0.915,1968.8,1967.5,0.47396517]
[1771477565358,0.46689237,1968.8,1967.5,0.47396517]
[1771477565660,0.46689237,1968.6,1967.6,1.27058345]
[1771477565860,0.46689237,1968.6,1967.6,2.29154862]
[1771477566063,0.46689237,1968.6,1967.6,1.74454862]
[1771477566263,0.46689237,1968.6,1967.7,0.47396517]
[1771477566640,0.46689237,1968.6,1967.9,0.001]
[1771477567382,11.819319,1968.5,1967.9,0.001]
[1771477567589,1.26987352,1968.7,1967.9,0.001]
[1771477567590,0.46689237,1968.4,1967.9,0.001]
[1771477567883,1.73702395,1968.3,1967.9,0.001]
[1771477568557,1.27010112,1968.4,1967.9,0.001]
[1771477568876,5.07952102,1968.7,1967.9,0.47496517]
[1771477568877,1.26987352,1968.7,1967.9,0.47496517]
[1771477569378,0.46689237,1968.6,1967.9,0.001]
[1771477569977,1.736882,1968.6,1967.9,1.27138975]
[1771477570158,1.26991255,1968.7,1967.9,1.74535492]
[1771477570357,1.26991255,1968.7,1968.0,0.47396517]
[1771477570681,0.57039237,1969.0,1968.0,0.47396517]
[1771477570848,1.26974452,1968.9,1968.0,0.47396517]
[1771477571172,0.46689237,1968.9,1967.9,1.27138975]
[1771477571372,1.27082417,1969.0,1967.9,0.47496517]
[1771477571373,8.44137632,1969.0,1967.9,0.47496517]
[1771477571573,1.27082417,1969.0,1967.9,0.47496517]
[1771477571778,2.27582417,1969.0,1967.9,0.47496517]
[1771477571977,2.27582417,1969.0,1968.1,0.47396517]
[1771477571978,2.74271654,1969.0,1968.1,0.47396517]
[1771477572272,1.73771654,1969.0,1968.1,0.47396517]
[1771477572476,0.46689237,1968.9,1968.1,0.47396517]
[1771477572848,1.27078731,1969.0,1968.1,0.47396517]
[1771477573048,0.0011,1969.0,1968.1,0.47396517]
[1771477573487,1.27078949,1969.0,1968.1,0.47396517]
[1771477573653,0.0011,1969.0,1968.1,0.47396517]
[1771477574049,0.0011,1969.0,1968.3,0.47396517]
[1771477576081,0.0011,1969.0,1968.5,0.47396517]
[1771477576898,0.0011,1969.0,1968.4,1.27006705]
[1771477577350,0.0011,1969.0,1968.3,1.74406938]
[1771477577551,0.46799237,1969.0,1968.3,0.05060574]
[1771477577747,0.46799237,1969.0,1968.1,1.27021263]
[1771477578379,1.73663689,1968.9,1968.0,5.08114758]
[1771477579259,1.73663689,1968.9,1968.1,0.47396517]
[1771477579460,1.27082157,1969.0,1968.1,0.47396517]
[1771477579659,0.0011,1969.0,1968.1,0.47396517]
[1771477580073,1.27078115,1969.0,1968.1,0.47396517]
[1771477580451,0.0011,1969.0,1968.2,1.74416128]
[1771477580650,0.0011,1968.9,1968.2,1.74416128]
[1771477581459,0.0011,1968.9,1968.3,0.47396517]
[1771477582353,0.0011,1968.9,1968.4,1.27006705]
[1771477584289,0.0011,1968.9,1968.3,1.74409092]
[1771477584485,0.0011,1968.9,1968.1,1.103]
[1771477584486,0.46799237,1968.9,1968.1,1.103]
[1771477584684,0.46799237,1968.9,1968.1,2.37324546]
[1771477584885,0.46799237,1968.9,1968.0,0.05161345]
[1771477585087,0.46799237,1968.9,1968.0,0.001]
[1771477585494,0.46689237,1968.7,1968.0,0.001]
[1771477586790,1.73683039,1968.6,1968.0,0.001]
[1771477588803,0.0011,1968.9,1968.1,0.47396517]
[1771477589000,0.46799237,1968.9,1968.0,0.001]
[1771477590381,0.46799237,1968.9,1968.0,0.474954]
[1771477591087,1.26980902,1968.8,1968.1,1.27026065]
[1771477592700,0.46623081,1968.7,1968.0,0.001]
[1771477593185,0.46623081,1968.5,1968.0,0.001]
[1771477593785,1.26993802,1968.6,1968.0,0.001]
[1771477594200,0.46623081,1968.5,1968.0,0.001]
[1771477594591,0.46623081,1968.5,1968.1,0.001]
[1771477595375,1.27006705,1968.4,1968.1,0.001]
[1771477595575,1.27006705,1968.4,1968.0,0.001]
[1771477595576,0.46623081,1968.3,1967.3,5.55683418]
[1771477595774,0.46623081,1968.3,1967.3,1.7447312]
[1771477596600,0.46623081,1968.2,1967.3,1.7447312]
[1771477596785,0.46623081,1968.2,1966.9,5.55805203]
[1771477596990,12.28554981,1968.1,1966.9,1.74493857]
[1771477597214,0.46623081,1968.0,1966.9,1.74493857]
[1771477597519,0.46623081,1967.8,1966.9,1.74493857]
[1771477598493,0.46623081,1967.8,1967.0,0.473954]
[1771477599285,0.46623081,1967.8,1966.9,1.27098457]
[1771477599922,1.27051887,1967.7,1966.9,1.27098457]
[1771477600232,5.08013558,1968.5,1967.1,0.473954]
[1771477600436,0.46623081,1968.3,1967.3,0.473954]
[1771477601021,1.27004709,1968.5,1967.4,0.473954]
[1771477601224,1.26998485,1968.6,1967.4,0.473954]
[1771477601996,1.26998485,1968.6,1967.6,0.473954]
[1771477602602,2.70213631,1968.7,1967.6,0.473954]
[1771477603593,0.46623081,1968.6,1967.6,0.473954]
[1771477603821,0.46623081,1968.4,1967.5,1.21064803]
[1771477603993,1.73636239,1968.3,1967.5,1.21064803]
[1771477604188,0.46623081,1968.2,1967.5,1.21064803]
[1771477604700,0.46623081,1968.2,1967.2,1.2708418]
[1771477605426,1.27013158,1968.3,1967.3,0.473954]
[1771477605631,1.73633104,1968.4,1967.3,0.473954]
[1771477605923,1.73633104,1968.4,1967.5,0.473954]
[1771477606122,1.73633104,1968.4,1967.4,1.27071261]
[1771477606123,0.46623081,1968.3,1967.4,1.27071261]
[1771477606508,0.46623081,1968.2,1967.4,1.27071261]
[1771477606704,0.56863081,1968.1,1967.3,1.27073356]
[1771477607034,0.46623081,1968.1,1967.3,1.27073356]
[1771477608036,1.2703252,1968.0,1967.4,0.001]
[1771477608721,5.54863162,1968.1,1967.4,0.001]
[1771477608722,0.0011,1968.1,1967.4,0.474954]
[1771477610012,0.0011,1968.1,1967.5,1.27064803]
[1771477610431,0.0011,1968.1,1967.5,1.74460203]
[1771477610638,0.0011,1968.1,1967.5,1.27064803]
[1771477614810,0.0011,1968.1,1967.4,5.56781012]
[1771477614811,0.46623081,1968.0,1967.4,1.27170916]
[1771477616151,0.46623081,1968.0,1967.4,0.001]
[1771477616443,1.27038975,1967.9,1967.4,0.001]
[1771477617422,1.73662056,1967.9,1967.4,0.001]
[1771477617823,1.27038975,1967.9,1967.4,0.001]
[1771477618026,1.27038975,1967.9,1967.2,1.2128418]
[1771477619641,1.2703618,1968.0,1967.2,1.69174548]
[1771477619841,1.2703618,1968.0,1967.3,0.47890368]
[1771477620245,0.0011,1968.1,1967.4,1.27071261]
[1771477620656,0.4716102,1968.1,1967.4,1.27071261]
[1771477621148,0.4716102,1968.1,1967.3,1.270726]
[1771477622252,1.74192077,1968.1,1967.3,1.74962968]
[1771477622458,1.74192077,1968.1,1967.3,1.75062968]
[1771477622843,0.0011,1968.0,1967.3,1.75062968]
[1771477623368,0.0011,1968.0,1967.4,0.47890368]
[1771477624472,0.0011,1968.0,1967.5,1.27064803]
[1771477624647,0.0011,1968.0,1967.5,1.74955171]
[1771477625367,0.0011,1968.0,1967.6,0.47890368]
[1771477625543,0.0011,1968.0,1967.5,1.27064803]
[1771477627972,0.0011,1968.0,1967.5,1.74955171]
[1771477628184,0.0011,1968.0,1967.6,0.47890368]
[1771477630278,0.0011,1968.0,1967.7,1.27051887]
[1771477630579,0.0011,1968.0,1967.8,0.47890368]
[1771477631583,0.0011,1968.0,1967.7,1.27051887]
[1771477631790,0.0011,1968.0,1967.5,2.36261524]
[1771477633093,0.0011,1968.0,1967.5,1.092]
[1771477633987,0.0011,1968.0,1967.5,2.36264109]
[1771477634484,0.0011,1968.0,1967.5,2.36264759]
[1771477634648,0.0011,1968.0,1967.5,1.092]
[1771477635892,1.2714252,1968.0,1967.5,1.092]
[1771477636194,0.4705102,1967.9,1967.3,0.001]
[1771477637199,0.4705102,1967.9,1967.4,0.001]
[1771477637692,0.4716102,1967.9,1967.4,0.001]
[1771477638067,0.4705102,1967.7,1967.4,0.001]
[1771477638277,0.4705102,1967.7,1966.6,1.75013321]
[1771477638594,0.4705102,1967.7,1966.8,0.47890368]
[1771477639584,0.0011,1967.9,1967.0,0.47890368]
[1771477639894,0.0011,1967.9,1967.2,0.47890368]
[1771477640096,0.0011,1967.9,1967.5,0.47890368]
[1771477640600,0.0011,1967.9,1967.4,1.27071261]
[1771477640912,0.0011,1967.9,1967.4,2.36271261]
[1771477641201,0.0011,1967.9,1967.4,2.84161629]
[1771477643099,0.0011,1967.9,1967.5,0.47890368]
[1771477643698,0.0011,1967.9,1967.4,2.36271261]
[1771477644198,0.0011,1967.9,1967.4,2.84161629]
[1771477647203,0.0011,1967.9,1967.4,2.36271261]
[1771477648787,0.0011,1967.9,1967.4,2.84161629]
[1771477648991,0.0011,1967.9,1967.5,0.47890368]
[1771477651208,0.0011,1967.8,1967.6,1.27058345]
[1771477652307,0.0011,1967.8,1967.5,1.096]
[1771477652800,0.0011,1967.8,1967.2,1.096]
[1771477652801,0.47512247,1967.7,1967.2,1.096]
[1771477653315,1.74569267,1967.7,1967.2,1.096]
[1771477655211,0.47512247,1967.6,1967.2,1.096]
[1771477656813,0.47512247,1967.6,1967.0,1.2709407]
[1771477657018,0.47512247,1967.6,1967.1,0.001]
[1771477658524,1.74670335,1967.8,1967.2,0.001]
[1771477658727,1.74670335,1967.8,1967.1,0.001]
[1771477659194,0.47622247,1967.8,1967.2,0.001]
[1771477659394,1.74667873,1967.8,1967.3,0.001]
[1771477659590,1.74667873,1967.8,1967.0,1.28139257]
[1771477659791,0.47512247,1967.7,1967.1,0.001]
[1771477661499,1.74570592,1967.6,1967.1,0.001]
[1771477663016,0.47512247,1967.5,1967.1,0.001]
[1771477663727,1.7458163,1967.5,1967.1,0.001]
[1771477664730,1.7458163,1967.5,1967.1,0.002]
[1771477665793,1.7458163,1967.5,1967.2,0.001]
[1771477666140,0.47512247,1967.5,1967.2,0.001]
[1771477666438,1.74577562,1967.5,1967.2,0.001]
[1771477666740,0.47512247,1967.4,1967.2,0.001]
[1771477667023,1.74685193,1967.6,1967.2,0.001]
[1771477667396,0.47512247,1967.5,1967.1,0.001]
[1771477667617,0.47512247,1967.5,1967.2,0.001]
[1771477667931,1.74577258,1967.5,1967.1,0.001]
[1771477668140,0.0011,1967.6,1967.2,0.001]
[1771477668509,0.0011,1967.6,1967.3,0.001]
[1771477668703,0.0011,1967.6,1967.2,0.001]
[1771477669010,0.0011,1967.6,1967.1,0.46145921]
[1771477670116,0.0011,1967.6,1967.3,0.46045921]
[1771477670517,0.0011,1967.6,1967.4,0.001]
[1771477671039,0.0011,1967.8,1967.3,0.46045921]
[1771477671235,0.0011,1967.8,1967.4,1.54945921]
[1771477671409,0.0011,1967.8,1967.5,0.46045921]
[1771477672210,0.0011,1967.8,1967.6,1.27058345]
[1771477674949,0.0011,1967.8,1967.7,0.46045921]
[1771477676944,0.0011,1967.8,1967.7,1.27051887]
[1771477678333,0.0011,1968.0,1967.7,1.27051887]
[1771477678547,0.0011,1968.0,1967.8,1.091]
[1771477679035,0.0011,1968.0,1967.9,1.27038975]
[1771477680348,0.0011,1968.1,1967.9,1.74443273]
[1771477680723,0.0011,1968.1,1967.8,1.091]
[1771477680924,0.0011,1968.1,1967.9,1.093]
[1771477687561,0.0011,1968.1,1967.7,1.27051112]
[1771477687724,0.0011,1968.1,1967.7,2.36251112]
[1771477689167,0.0011,1968.1,1967.8,0.47404298]
[1771477689469,0.0011,1968.2,1967.8,0.47404298]
[1771477689839,0.0011,1968.2,1967.7,2.36251112]
[1771477690780,0.45787562,1968.2,1967.7,1.27051112]
[1771477690935,0.45787562,1968.2,1967.8,1.092]
[1771477691132,0.0011,1968.0,1967.8,1.092]
[1771477692242,0.0011,1968.0,1967.8,2.36245292]
[1771477693867,0.0011,1968.1,1967.9,0.47404298]
[1771477694280,0.0011,1968.1,1968.0,1.2703252]
[1771477696341,0.0011,1968.1,1967.9,5.08146359]
[1771477699167,0.0011,1968.1,1967.9,1.27038975]
[1771477699988,0.0011,1968.1,1968.0,1.094]
[1771477701687,0.0011,1968.1,1967.9,1.094]
[1771477704363,0.0011,1968.1,1968.0,0.001]
[1771477706889,0.0011,1968.1,1968.0,0.01335293]
[1771477707089,0.0011,1968.2,1968.0,0.01335293]
[1771477707483,0.0011,1968.2,1968.0,0.001]
[1771477709305,0.0011,1968.2,1968.0,0.01335167]
[1771477709899,0.0011,1968.3,1968.0,0.01335167]
[1771477710399,0.0011,1968.3,1968.1,1.27026065]
[1771477712074,0.0011,1968.3,1968.2,0.01235041]
[1771477712299,0.0011,1968.3,1968.2,1.28254652]
[1771477712810,0.50108458,1968.8,1968.2,1.28254652]
[1771477713009,0.50108458,1968.8,1968.3,1.096]
[1771477713706,0.49998458,1968.7,1968.3,1.096]
[1771477714995,0.49998458,1968.7,1968.3,2.36609309]
[1771477716912,0.0011,1968.8,1968.3,2.84441079]
[1771477717088,0.0011,1968.7,1968.3,2.36609309]
[1771477719132,0.50108458,1968.7,1968.3,2.36609309]
[1771477720630,0.0011,1968.7,1968.3,2.36609309]
[1771477722627,0.0011,1968.7,1968.4,0.01234788]
[1771477723224,0.0011,1968.7,1968.3,2.36609309]
[1771477723225,0.50108458,1968.7,1968.0,0.001]
[1771477723923,0.49998458,1968.5,1968.0,0.001]
[1771477726151,1.77005163,1968.4,1968.0,0.001]
[1771477728642,1.77005163,1968.4,1968.1,0.001]
[1771477729227,0.49998458,1968.3,1968.1,0.001]
[1771477730245,1.77018069,1968.2,1968.1,0.001]
[1771477733619,1.27019611,1968.2,1968.1,0.001]
[1771477733823,1.2701682,1968.3,1968.1,0.001]
[1771477734027,1.77009781,1968.4,1968.1,0.001]
[1771477735110,0.49998458,1968.3,1968.1,0.001]
[1771477735748,0.49998458,1968.3,1968.0,0.001]
[1771477736631,1.77018069,1968.2,1968.0,0.001]
[1771477736940,1.77018069,1968.2,1967.9,0.001]
[1771477737717,0.49998458,1968.1,1967.9,0.001]
[1771477738640,1.77028414,1968.1,1967.9,0.001]
[1771477740436,1.27029956,1968.1,1968.0,0.001]
[1771477740636,0.45672514,1968.2,1968.0,0.001]
[1771477741038,5.08174945,1968.3,1968.0,0.001]
[1771477742163,0.45672514,1968.1,1967.7,0.001]
[1771477742329,5.58498617,1968.2,1967.1,1.089]
[1771477742330,5.58498617,1967.8,1967.1,1.089]
[1771477742529,5.58498617,1967.8,1967.2,0.49442496]
[1771477742745,6.85531137,1968.0,1967.3,0.49442496]
[1771477745555,6.85531137,1968.0,1967.3,1.27076902]
[1771477745758,6.85531137,1968.0,1967.4,0.49442496]
[1771477746426,6.8676594,1968.0,1967.4,0.49442496]
[1771477747368,1.28268061,1968.0,1967.4,0.49442496]
[1771477747525,0.09,1968.1,1967.5,0.49442496]
[1771477747854,0.45782514,1968.3,1967.7,0.49442496]
[1771477747855,1.72801592,1968.3,1967.7,0.49442496]
[1771477748038,1.72801592,1968.3,1967.6,1.30440947]
[1771477748232,0.45672514,1968.2,1967.6,1.30440947]
[1771477748640,0.45672514,1968.2,1967.6,1.79883443]
[1771477749577,0.45672514,1968.2,1967.6,0.03382602]
[1771477749578,1.27026065,1968.1,1967.6,0.03382602]
[1771477749745,0.45672514,1968.0,1967.4,1.27068693]
[1771477750862,1.27026065,1968.1,1967.5,0.49442496]
[1771477751049,0.45672514,1968.0,1967.4,1.27068693]
[1771477752376,1.72709512,1968.0,1967.4,1.27068693]
[1771477753150,1.72709512,1968.0,1967.5,0.001]
[1771477753387,0.0011,1967.9,1967.5,0.001]
[1771477753763,0.0011,1967.9,1967.1,0.49442496]
[1771477753764,6.04243492,1967.7,1967.1,0.49442496]
[1771477753953,0.45672514,1967.6,1966.9,2.85242031]
[1771477754254,0.45672514,1967.6,1967.2,0.001]
[1771477754461,1.72737317,1967.5,1967.2,0.001]
[1771477754773,5.08190876,1967.8,1967.2,0.49542496]
[1771477754774,1.27045431,1967.8,1967.2,0.49542496]
[1771477754980,1.27153874,1967.9,1967.2,0.49542496]
[1771477755676,0.0011,1967.9,1967.4,5.58570978]
[1771477755979,0.0011,1967.9,1967.5,0.49442496]
[1771477757053,0.0011,1967.9,1967.4,2.85312909]
[1771477757375,0.0011,1967.9,1967.5,0.49442496]
[1771477759372,0.0011,1967.9,1967.6,1.27058345]
[1771477759571,0.0011,1967.9,1967.6,1.76500841]
[1771477760053,0.0011,1967.9,1967.7,0.49442496]
[1771477760451,0.0011,1967.9,1967.6,1.27058345]
[1771477761086,0.0011,1967.9,1967.6,1.76500841]
[1771477762169,0.0011,1967.9,1967.5,1.27058738]
[1771477762686,0.0011,1967.9,1967.5,1.76501234]
[1771477762865,0.0011,1967.9,1967.6,0.49442496]
[1771477763067,0.0011,1967.9,1967.5,1.27058738]
[1771477763583,0.0011,1967.9,1967.4,1.088]
[1771477763783,0.0011,1967.9,1967.5,0.49442496]
[1771477764687,0.0011,1967.9,1967.6,1.76500841]
[1771477766564,0.0011,1967.9,1967.5,5.08337582]
[1771477766565,0.0011,1967.9,1967.5,5.57780078]
[1771477766857,0.0011,1967.8,1967.5,5.57780078]
[1771477767283,0.0011,1967.8,1967.6,0.49442496]
[1771477767490,0.0011,1967.8,1967.5,5.08337582]
[1771477767991,0.0011,1967.8,1967.5,5.57780078]
[1771477768904,0.0011,1967.8,1967.5,5.08337582]
[1771477769083,0.0011,1968.0,1967.6,0.49442496]
[1771477769766,0.0011,1968.1,1967.5,5.08337582]
[1771477769974,0.0011,1968.4,1967.6,0.4881663]
[1771477770992,0.0011,1968.4,1967.7,1.75868517]
[1771477771187,0.0011,1968.4,1967.8,1.09]
[1771477771396,0.45830457,1968.4,1967.8,1.09]
[1771477771968,0.0011,1968.4,1967.8,1.5781663]
[1771477773004,0.0011,1968.4,1968.0,1.2703252]
[1771477773220,0.0011,1968.4,1968.1,0.4881663]
[1771477773381,0.0011,1968.4,1968.2,1.09]
[1771477774022,0.0011,1968.6,1968.2,1.5781663]
[1771477774183,0.0011,1968.7,1968.3,0.4881663]
[1771477774997,0.0011,1968.7,1968.4,1.27006705]
[1771477775226,0.0011,1968.7,1968.4,1.75823335]
[1771477777317,0.0011,1968.7,1968.5,0.4881663]
[1771477777488,0.45720457,1969.4,1968.6,1.5811663]
[1771477777689,0.45830457,1969.3,1968.6,1.5811663]
[1771477778711,0.45830457,1969.3,1968.7,6.06750727]
[1771477778712,0.0011,1969.3,1968.7,6.06750727]
[1771477779722,0.0011,1969.3,1968.8,1.26980902]
[1771477780029,0.0011,1969.3,1968.8,1.75797532]
[1771477780218,0.0011,1969.3,1968.9,6.06750727]
[1771477780549,0.0011,1969.3,1968.8,1.26980902]
[1771477780550,0.0011,1968.9,1968.8,1.26980902]
[1771477780695,0.0011,1969.3,1968.8,1.75797532]
[1771477780896,0.0011,1969.3,1969.0,5.57934097]
[1771477781094,0.45830457,1969.8,1968.8,1.26980902]
[1771477781095,5.57934097,1970.2,1969.2,6.06750727]
[1771477781316,0.45720457,1970.0,1969.2,6.06750727]
[1771477781921,0.45720457,1970.0,1969.3,1.26948661]
[1771477782290,0.01234803,1970.2,1969.3,1.26948661]
[1771477782492,0.45720457,1970.1,1969.3,1.26948661]
[1771477782934,0.45720457,1970.1,1969.4,0.4881663]
[1771477783096,0.45830457,1970.3,1969.5,1.094]
[1771477783509,0.45720457,1970.2,1969.5,1.094]
[1771477784021,0.45720457,1970.2,1969.6,1.26929325]
[1771477787327,0.0011,1970.3,1969.6,1.26929325]
[1771477787535,0.01344803,1970.3,1969.6,1.26929325]
[1771477787834,0.01344803,1970.3,1969.6,1.75745955]
[1771477788223,0.0011,1970.3,1969.6,1.75745955]
[1771477789739,0.0011,1970.3,1969.5,2.36430304]
[1771477789740,0.4706526,1970.3,1969.5,2.36430304]
[1771477792112,0.0011,1969.8,1969.5,2.36430304]
[1771477793353,0.0011,1969.8,1969.5,2.85246934]
[1771477793729,0.0011,1969.8,1969.5,2.36430304]
[1771477798732,0.0011,1969.8,1969.5,2.85246934]
[1771477798958,0.0011,1969.8,1969.6,0.4881663]
[1771477800757,0.0011,1970.1,1969.6,0.4881663]
[1771477800758,0.0011,1970.1,1969.7,1.26922881]
[1771477801067,0.09,1970.3,1969.8,1.099]
[1771477801229,0.45720457,1970.4,1969.8,1.099]
[1771477803059,0.01234803,1970.7,1970.0,0.45621721]
[1771477803231,10.26,1970.9,1970.0,0.45621721]
[1771477803232,0.26731527,1970.9,1970.0,0.45621721]
[1771477803438,0.2796633,1970.9,1970.0,0.45621721]
[1771477804940,0.2796633,1970.9,1970.1,1.26897111]
[1771477805145,0.26731527,1970.9,1970.1,1.72518832]
[1771477805862,0.26731527,1971.1,1970.3,0.45621721]
[1771477806233,0.2796633,1971.1,1970.3,0.45621721]
[1771477807175,0.2796633,1971.1,1970.4,1.26877791]
[1771477807337,0.2796633,1971.1,1970.4,1.72499512]
[1771477807540,0.26731527,1971.3,1970.5,0.45621721]
[1771477807749,0.26731527,1971.3,1970.6,1.097]
[1771477807936,0.26731527,1971.3,1970.6,1.55321721]
[1771477808851,0.2796633,1971.5,1970.7,0.45621721]
[1771477809369,0.2796633,1971.5,1970.8,1.26852039]
[1771477811232,0.2796633,1971.5,1970.8,1.7247376]
[1771477812672,0.26731527,1971.5,1970.9,0.45621721]
[1771477813449,0.01234803,1971.7,1970.4,0.45621721]
[1771477813450,5.83550563,1971.2,1970.4,0.45621721]
[1771477813651,5.83550563,1970.8,1970.0,1.55221721]
[1771477813849,0.01234803,1970.7,1970.0,0.45621721]
[1771477814170,5.83550563,1971.2,1970.1,0.46856899]
[1771477814376,0.26731527,1971.1,1970.1,0.46856899]
[1771477814774,0.26731527,1971.3,1970.3,0.45621721]
[1771477815070,0.26731527,1971.3,1970.4,0.4685671]
[1771477815672,0.26731527,1971.3,1970.5,1.26871352]
[1771477816256,0.26731527,1971.3,1970.6,0.01234863]
[1771477816642,0.26731527,1971.6,1970.6,0.46856584]
[1771477816997,0.26731527,1971.6,1970.6,0.45621721]
[1771477817173,0.26731527,1971.6,1970.7,0.01237278]
[1771477817474,0.26731527,1971.6,1970.5,1.26871352]
[1771477817653,0.0011,1971.0,1970.5,1.26871352]
[1771477818485,0.0011,1971.0,1970.5,1.72493073]
[1771477820666,0.0011,1971.0,1970.5,1.26871352]
[1771477821787,0.0011,1971.0,1970.5,1.72493073]
[1771477822756,0.0011,1971.0,1970.5,1.26871352]
[1771477830509,0.0011,1970.9,1970.6,0.001]
[1771477838117,0.0011,1970.9,1970.6,0.50040174]
[1771477839500,0.0011,1971.0,1970.7,0.49940174]
[1771477840126,0.0011,1971.0,1970.9,0.49940174]
[1771477842398,0.0011,1971.0,1970.9,1.76785777]
[1771477844421,0.0011,1971.0,1970.9,1.26845603]
[1771477848144,0.0011,1971.3,1970.9,1.26845603]
[1771477848353,1.2679458,1971.7,1970.9,1.76845603]
[1771477854350,1.26787823,1971.8,1970.9,1.76845603]
[1771477855820,1.26787823,1971.8,1971.0,0.001]
[1771477856023,0.0011,1971.4,1971.0,0.001]
[1771477860273,5.5706844,1971.3,1970.8,1.1]
[1771477860553,5.5706844,1970.9,1970.5,1.76969102]
[1771477860753,0.9341,1971.4,1970.6,0.5]
[1771477860754,0.0011,1971.4,1970.6,0.5]
[1771477860969,0.9351,1971.4,1970.6,0.5]
[1771477862868,0.0011,1971.4,1970.8,0.5]
[1771477864769,0.0011,1971.4,1970.9,1.26845603]